bitfinex/quotes_ETHUSD_20241030
["timestamp","ask_amount","ask_price","bid_price","bid_amount"]
[1730256868808,3.8042,2628.7,2628.5,1.10465214]
[1730256869000,3.8042,2628.7,2628.5,0.8198]
[1730256869337,3.8042,2628.7,2628.6,0.740922]
[1730256869736,3.80416,2628.7,2628.6,0.740922]
[1730256870414,4.71452737,2628.7,2628.6,0.740922]
[1730256871511,4.71452737,2628.7,2628.6,1.02606917]
[1730256872108,0.91036737,2628.7,2628.6,1.02606917]
[1730256872309,7.60813,2628.8,2628.6,1.02606917]
[1730256872501,3.80402,2628.8,2628.7,0.45606103]
[1730256874409,7.60784,2628.9,2628.7,0.74109917]
[1730256874652,0.10666862,2628.8,2628.6,1.5916556]
[1730256874951,0.10666862,2628.8,2628.7,0.74125566]
[1730256877555,3.91067862,2628.8,2628.7,0.74125566]
[1730256877854,4.83169586,2628.8,2628.7,0.74125566]
[1730256879146,4.83169586,2628.8,2628.7,0.74120036]
[1730256882438,4.83169586,2628.8,2628.7,0.74106022]
[1730256885668,4.83169586,2628.8,2628.7,0.28502316]
[1730256885842,4.83169586,2628.8,2628.7,0.74106022]
[1730256886174,4.83169586,2628.8,2628.7,1.48209525]
[1730256886766,4.83169586,2628.8,2628.7,0.74103503]
[1730256887067,4.83169586,2628.8,2628.7,0.28501347]
[1730256887253,4.83169586,2628.8,2628.7,0.74103503]
[1730256888792,0.10666862,2628.8,2628.7,0.74103503]
[1730256888932,3.91067862,2628.8,2628.7,0.74103503]
[1730256889772,3.91067862,2628.8,2628.5,1.5520556]
[1730256890067,3.91067862,2628.8,2628.7,0.74101422]
[1730256890273,3.91067862,2628.8,2628.6,0.74101422]
[1730256891970,3.91067862,2628.8,2628.7,0.74101422]
[1730256893039,0.10666862,2628.8,2628.7,0.74101422]
[1730256893347,3.91067862,2628.8,2628.7,0.74101422]
[1730256893556,3.91067862,2628.8,2628.7,0.74103382]
[1730256897402,3.91067862,2628.8,2628.7,0.74107758]
[1730256898369,3.91067862,2628.8,2628.7,0.28503804]
[1730256899249,3.91067862,2628.8,2628.7,0.74109891]
[1730256901271,3.91067862,2628.8,2628.7,1.1971859]
[1730256901477,3.91067862,2628.8,2628.7,0.74112503]
[1730256902640,5.64499786,2628.8,2628.7,0.74112503]
[1730256902835,5.64499786,2628.8,2628.7,0.28504809]
[1730256904002,6.19499786,2628.8,2628.7,0.28504809]
[1730256907992,6.19499786,2628.8,2628.3,1.5593556]
[1730256907993,3.80447,2628.5,2628.3,1.5593556]
[1730256908179,3.80447,2628.5,2628.4,0.74128501]
[1730256909266,5.30009374,2628.5,2628.4,0.74128501]
[1730256911175,3.80447,2628.5,2628.4,0.74128501]
[1730256911887,3.80447,2628.5,2628.4,0.74129172]
[1730256912217,3.80447,2628.5,2628.3,0.766]
[1730256912527,3.80447,2628.5,2628.4,0.74129336]
[1730256915931,3.80447,2628.5,2628.3,0.766]
[1730256916078,3.80447,2628.5,2628.4,0.74126925]
[1730256919385,3.91095845,2628.5,2628.4,0.74126925]
[1730256923021,7.12237141,2628.5,2628.4,0.74126925]
[1730256923188,7.12237141,2628.5,2628.4,0.28510356]
[1730256923382,10.67237141,2628.5,2628.4,0.28510356]
[1730256924487,3.80503,2628.1,2628.0,0.45610891]
[1730256924828,3.91150231,2628.1,2628.0,1.19717357]
[1730256924983,3.91150231,2628.1,2628.0,0.74106466]
[1730256927125,0.10647231,2628.1,2628.0,0.74106466]
[1730256927435,3.91150231,2628.1,2628.0,1.49906466]
[1730256927826,3.91150231,2628.1,2628.0,0.758]
[1730256928124,3.91150231,2628.1,2628.0,1.0429349]
[1730256928125,3.80503,2628.1,2628.0,1.0429349]
[1730256928299,3.91150231,2628.1,2628.0,1.0429349]
[1730256928914,0.10647231,2628.1,2628.0,1.0429349]
[1730256929143,0.10647231,2628.1,2628.0,1.49883075]
[1730256929437,3.80478,2628.3,2628.0,1.87812262]
[1730256929595,0.10633243,2628.1,2628.0,1.13729187]
[1730256929801,3.80478,2628.3,2628.0,1.87793411]
[1730256929996,7.60961,2628.3,2628.1,0.74064224]
[1730256930243,3.80488,2628.2,2628.1,0.45577984]
[1730256930400,3.80488,2628.2,2628.1,0.74064219]
[1730256931724,3.80488,2628.2,2628.1,4.43997293]
[1730256932032,3.80488,2628.2,2628.1,4.43985814]
[1730256932232,3.80488,2628.2,2628.1,4.83909026]
[1730256932601,3.80488,2628.2,2628.1,4.60937962]
[1730256933819,3.80421,2628.7,2628.2,0.7763]
[1730256934121,3.80438,2628.6,2628.4,0.7763]
[1730256934321,3.90738392,2628.6,2628.5,0.28481823]
[1730256934541,0.10300392,2628.6,2628.5,0.7405274]
[1730256942481,3.90730392,2628.6,2628.5,0.7405274]
[1730256945690,5.40292766,2628.6,2628.5,0.7405274]
[1730256945895,5.40292766,2628.6,2628.5,0.28481823]
[1730256949448,6.21462766,2628.6,2628.3,0.45570917]
[1730256949787,3.80459,2628.4,2628.3,0.45570917]
[1730256950084,3.80499,2628.2,2628.0,0.45570917]
[1730256950250,3.80499,2628.2,2627.9,1.62386992]
[1730256950451,0.1029877,2628.1,2627.9,1.62386992]
[1730256950652,0.1029877,2628.1,2628.0,0.74074351]
[1730256951385,3.9080177,2628.1,2628.0,0.74074351]
[1730256956084,3.9080177,2628.1,2628.0,0.28490135]
[1730256956287,4.7197177,2628.1,2628.0,0.28490135]
[1730256956494,4.7197177,2628.1,2627.6,0.45584216]
[1730256956657,3.8056,2627.7,2627.6,0.45584216]
[1730256956857,3.8056,2627.7,2627.6,0.28485698]
[1730256957078,3.90848226,2627.7,2627.6,0.74069914]
[1730256957393,3.90848226,2627.7,2627.4,0.79726992]
[1730256957590,3.90848226,2627.7,2627.5,0.45565837]
[1730256958079,3.90848226,2627.7,2627.4,0.45565837]
[1730256958254,3.90848226,2627.7,2627.6,0.28478648]
[1730256958455,3.90848226,2627.7,2627.3,1.62386992]
[1730256958456,3.90848226,2627.7,2627.4,0.45556135]
[1730256959095,3.80576,2627.6,2627.4,0.45556135]
[1730256959393,3.80576,2627.6,2627.3,2.07943127]
[1730256959593,0.10288226,2627.5,2627.3,2.07943127]
[1730256960285,0.10288226,2627.5,2627.4,1.49562374]
[1730256960489,3.80547,2627.8,2627.4,2.74845501]
[1730256960694,0.10288226,2627.5,2627.4,2.82456863]
[1730256960857,3.80547,2627.8,2627.5,0.28464615]
[1730256962370,3.80547,2627.8,2627.6,0.28464615]
[1730256962774,3.80528,2628.0,2627.7,0.7815]
[1730256962965,3.80499,2628.2,2627.7,0.7815]
[1730256963291,3.80503,2628.1,2627.8,0.28464615]
[1730256963499,3.80503,2628.1,2627.9,0.28464615]
[1730256963661,3.80503,2628.1,2627.9,0.28453317]
[1730256963862,3.80503,2628.1,2628.0,0.28453317]
[1730256964092,3.80503,2628.1,2627.8,0.28453317]
[1730256964469,0.10274978,2628.0,2627.8,0.28453317]
[1730256965500,0.10274978,2628.0,2627.9,0.28453317]
[1730256966098,3.80504,2628.1,2627.8,0.28452166]
[1730256966297,0.10277952,2628.0,2627.9,0.28452166]
[1730256966503,0.10277952,2628.0,2627.8,0.28452166]
[1730256966664,0.10277952,2628.0,2627.9,0.28452166]
[1730256966868,3.80504,2628.1,2627.8,0.28452166]
[1730256967064,0.10278222,2628.0,2627.9,0.28452166]
[1730256967272,0.10278222,2628.0,2627.7,0.7815]
[1730256968002,0.10278222,2628.0,2627.8,0.28452178]
[1730256968305,3.8052,2628.0,2627.8,0.28452178]
[1730256968469,0.10278222,2627.9,2627.8,0.28452178]
[1730256968965,3.80471,2628.4,2627.8,1.85625218]
[1730256969165,3.80471,2628.4,2628.0,0.7815]
[1730256969470,3.80488,2628.2,2628.0,0.7815]
[1730256969670,3.80488,2628.2,2628.1,0.28452178]
[1730256970200,3.80488,2628.2,2627.9,0.28452178]
[1730256970707,3.80488,2628.2,2628.0,0.28452178]
[1730256971015,7.60944,2628.4,2628.0,0.28448606]
[1730256971324,3.80476,2628.3,2628.1,0.28448606]
[1730256971486,3.80476,2628.3,2627.9,0.28448606]
[1730256971819,3.80476,2628.3,2628.0,0.28448606]
[1730256972910,3.80496,2628.2,2628.0,0.28448606]
[1730256973111,3.80496,2628.2,2628.1,0.28448606]
[1730256973618,3.80496,2628.2,2627.9,0.28448606]
[1730256973819,3.80496,2628.2,2628.0,0.28448606]
[1730256974110,3.80496,2628.2,2628.1,0.28448606]
[1730256974318,3.80496,2628.2,2627.9,0.28448606]
[1730256974521,3.80496,2628.2,2627.8,0.7815]
[1730256974716,3.80496,2628.2,2628.0,0.28450552]
[1730256974874,3.80496,2628.2,2628.1,0.28450552]
[1730256976276,3.80496,2628.2,2627.9,0.28450552]
[1730256976477,3.80471,2628.4,2628.0,0.28450552]
[1730256976776,3.80475,2628.3,2628.1,0.28450552]
[1730256976971,3.80475,2628.3,2627.9,0.28450552]
[1730256977409,3.80475,2628.3,2628.0,0.28450552]
[1730256977613,3.80475,2628.3,2628.1,0.28450552]
[1730256977820,3.80475,2628.3,2627.9,0.28450552]
[1730256978015,2.28192374,2628.5,2628.0,0.28450552]
[1730256978316,3.80459,2628.4,2628.0,0.28450552]
[1730256978616,3.80459,2628.4,2628.1,0.28450552]
[1730256979024,7.60928,2628.4,2628.1,0.28450552]
[1730256979409,3.90762686,2628.3,2628.1,0.28450552]
[1730256979934,3.90762686,2628.3,2628.2,0.28450552]
[1730256980138,3.90762686,2628.3,2628.0,0.28450552]
[1730256980334,3.90762686,2628.3,2628.1,0.28450552]
[1730256980542,3.90762686,2628.3,2628.2,0.28450552]
[1730256980740,3.90762686,2628.3,2628.0,0.28450552]
[1730256981036,3.90762686,2628.3,2628.1,0.28450552]
[1730256981225,3.90762686,2628.3,2627.9,3.80528]
[1730256981226,3.90762686,2628.3,2628.2,0.28450552]
[1730256981428,3.90762686,2628.3,2628.0,0.28450552]
[1730256981628,3.90762686,2628.3,2628.1,0.28450552]
[1730256981826,3.90762686,2628.3,2628.2,0.28450552]
[1730256982146,3.90762686,2628.3,2628.2,0.28458877]
[1730256982340,3.90762686,2628.3,2627.9,3.80528]
[1730256982341,3.90762686,2628.3,2628.0,0.28458877]
[1730256982501,3.90762686,2628.3,2628.1,0.28458877]
[1730256982702,3.90762686,2628.3,2628.2,0.28458877]
[1730256982923,3.90762686,2628.3,2628.0,0.28458877]
[1730256983207,3.90762686,2628.3,2628.1,0.28458877]
[1730256983406,3.90762686,2628.3,2628.2,0.28458877]
[1730256989448,3.90762686,2628.3,2627.9,0.79726992]
[1730256989606,3.90762686,2628.3,2628.2,0.28484377]
[1730256991739,0.10287686,2628.3,2628.2,0.74075257]
[1730256992020,3.80461,2628.4,2628.2,1.56525257]
[1730256992221,3.80461,2628.4,2628.3,0.28484377]
[1730256992757,3.80461,2628.4,2628.2,0.8245]
[1730256992933,3.80461,2628.4,2628.3,0.28494802]
[1730256993256,3.80459,2628.4,2628.3,0.74086486]
[1730256994530,3.90753716,2628.4,2628.3,0.74086486]
[1730256996554,3.90753716,2628.4,2628.3,0.74081532]
[1730256999929,3.90753716,2628.4,2628.2,0.8245]
[1730257000429,3.90753716,2628.4,2628.3,0.28491165]
[1730257000655,3.90753716,2628.4,2628.3,0.74077029]
[1730257001776,3.90753716,2628.4,2628.3,0.28491165]
[1730257003612,3.90753716,2628.4,2628.3,0.74077029]
[1730257003738,3.90753716,2628.4,2628.3,0.74083803]
[1730257004071,3.90753716,2628.4,2628.3,0.2849377]
[1730257004376,3.90753716,2628.4,2628.3,0.74083803]
[1730257004578,3.90753716,2628.4,2628.3,0.2849377]
[1730257005192,3.90753716,2628.4,2628.3,0.74083803]
[1730257007497,3.90753716,2628.4,2628.3,0.56999203]
[1730257007991,3.90753716,2628.4,2628.3,0.28505433]
[1730257008191,3.90753716,2628.4,2628.3,0.74114126]
[1730257011002,3.90753716,2628.4,2628.1,0.79726992]
[1730257011203,3.90753716,2628.4,2628.0,2.02040488]
[1730257011204,3.90753716,2628.4,2628.3,0.28521225]
[1730257012091,3.90753716,2628.4,2628.3,0.74155185]
[1730257018542,3.80474,2628.3,2628.2,0.79726992]
[1730257018850,3.80474,2628.3,2628.2,1.08259992]
[1730257019036,3.80474,2628.3,2628.2,1.53912792]
[1730257019351,3.90768173,2628.3,2628.2,1.53912792]
[1730257019847,0.10294173,2628.3,2628.2,1.53912792]
[1730257020629,3.90768173,2628.3,2628.2,1.53912792]
[1730257021858,3.90768173,2628.3,2628.2,1.99565809]
[1730257022671,0.10294173,2628.3,2628.2,1.99565809]
[1730257023754,0.10294173,2628.3,2628.2,1.99733442]
[1730257023964,0.10294173,2628.3,2628.2,1.54080642]
[1730257024173,0.10294173,2628.3,2628.2,0.45653017]
[1730257024347,3.80461,2628.4,2628.2,1.54084861]
[1730257024530,3.80461,2628.4,2628.3,0.45653017]
[1730257024979,3.80461,2628.4,2628.3,1.19843497]
[1730257026038,3.80447,2628.5,2628.3,1.99740886]
[1730257026352,7.60904,2628.5,2628.4,0.4565568]
[1730257027773,7.60904,2628.5,2628.4,0.7419048]
[1730257028869,7.60904,2628.5,2628.4,1.19845331]
[1730257029275,7.60904,2628.5,2628.4,0.74189651]
[1730257032668,3.80459,2628.4,2628.3,0.79897389]
[1730257032882,3.80459,2628.4,2628.3,1.25554282]
[1730257033037,3.80459,2628.4,2628.3,1.54089815]
[1730257034981,3.80459,2628.4,2628.3,0.74192426]
[1730257036450,3.80459,2628.4,2628.2,0.79897389]
[1730257036644,3.80459,2628.4,2628.3,0.74198116]
[1730257039557,3.90752633,2628.4,2628.3,0.74198116]
[1730257040459,3.90752633,2628.4,2628.3,1.02733529]
[1730257040849,3.90752633,2628.4,2628.3,0.74195792]
[1730257043084,3.90752633,2628.4,2628.3,1.54093181]
[1730257043253,3.90752633,2628.4,2628.3,0.74195792]
[1730257044489,3.80474,2628.3,2628.2,0.79897389]
[1730257044686,3.90767363,2628.3,2628.2,0.79897389]
[1730257044896,3.90767363,2628.3,2628.2,1.08434786]
[1730257045185,3.90767363,2628.3,2628.2,1.54094621]
[1730257047162,3.90767363,2628.3,2628.2,1.5410154]
[1730257048608,3.90767363,2628.3,2628.2,0.79904308]
[1730257049032,6.23269737,2628.3,2628.2,0.79904308]
[1730257049204,3.80503,2628.1,2628.0,0.79904308]
[1730257049361,3.80503,2628.1,2627.9,0.79904308]
[1730257049362,3.80517,2628.0,2627.9,0.79904308]
[1730257049565,3.80517,2628.0,2627.9,1.54095999]
[1730257049976,3.90809823,2628.0,2627.9,1.54095999]
[1730257052369,3.90809823,2628.0,2627.9,0.79904308]
[1730257052713,3.90809823,2628.0,2627.9,3.02394778]
[1730257056426,3.90809823,2628.0,2627.9,2.56755707]
[1730257056593,3.90809823,2628.0,2627.9,2.56747919]
[1730257056794,3.90809823,2628.0,2627.9,2.73857898]
[1730257056989,3.90809823,2628.0,2627.9,3.19484757]
[1730257057287,3.90809823,2628.0,2627.9,2.39580449]
[1730257057488,3.90809823,2628.0,2627.9,1.93953839]
[1730257057686,3.90809823,2628.0,2627.9,2.22470626]
[1730257058298,3.90809823,2628.0,2627.9,2.96614272]
[1730257059532,3.90809823,2628.0,2627.9,0.74143646]
[1730257060693,3.90809823,2628.0,2627.9,1.02654966]
[1730257060894,3.90809823,2628.0,2627.9,0.57028107]
[1730257061229,3.90809823,2628.0,2627.9,0.2851132]
[1730257061394,3.90809823,2628.0,2627.9,0.74129433]
[1730257064393,3.90809823,2628.0,2627.9,0.74115227]
[1730257068233,3.90809823,2628.0,2627.8,0.79904308]
[1730257068438,3.90809823,2628.0,2627.9,0.74109321]
[1730257069505,0.10292823,2628.0,2627.9,0.74109321]
[1730257071137,3.90809823,2628.0,2627.9,0.74109321]
[1730257071951,3.90809823,2628.0,2627.9,0.28503948]
[1730257072801,3.90809823,2628.0,2627.9,0.74110265]
[1730257074314,0.10292823,2628.0,2627.9,0.74110265]
[1730257078564,0.10292823,2628.0,2627.9,1.93375871]
[1730257078782,0.10292823,2628.0,2627.9,7.73463006]
[1730257078927,3.80477,2628.3,2627.9,10.26369079]
[1730257079124,3.80448,2628.5,2628.2,1.19721113]
[1730257079426,3.80459,2628.4,2628.2,0.79813439]
[1730257080297,3.80448,2628.5,2628.2,0.79813439]
[1730257081330,3.8046,2628.4,2628.2,0.79813439]
[1730257081723,3.8046,2628.4,2628.3,0.28502719]
[1730257082243,3.80448,2628.5,2628.3,0.28502719]
[1730257082565,3.80459,2628.4,2628.3,0.28502719]
[1730257084174,3.80459,2628.4,2628.3,0.74102117]
[1730257084582,3.90414002,2628.4,2628.3,0.74102117]
[1730257084877,3.90414002,2628.4,2628.3,0.74097733]
[1730257086574,3.90414002,2628.4,2628.3,1.4818782]
[1730257087577,3.90414002,2628.4,2628.3,0.74090087]
[1730257087876,3.90414002,2628.4,2628.3,0.28496187]
[1730257089356,3.90414002,2628.4,2628.3,0.74090087]
[1730257089651,3.90414002,2628.4,2628.3,0.2849257]
[1730257090159,4.75281902,2628.4,2628.3,0.7408033]
[1730257090361,5.51211902,2628.4,2628.3,0.2849257]
[1730257090835,5.51211902,2628.4,2628.2,0.4558776]
[1730257091179,3.80474,2628.3,2628.2,0.4558776]
[1730257091476,3.90433621,2628.3,2628.2,0.4558776]
[1730257091688,3.90433621,2628.3,2628.2,0.74084255]
[1730257092393,3.90433621,2628.3,2628.2,0.28496495]
[1730257093789,3.80521,2628.0,2627.9,0.45596665]
[1730257094151,3.80521,2628.0,2627.9,0.74094723]
[1730257094355,3.90480621,2628.0,2627.9,0.74094723]
[1730257096594,0.09959621,2628.0,2627.9,0.74094723]
[1730257096794,0.09959621,2628.0,2627.9,1.53908162]
[1730257097087,3.80508,2628.1,2627.9,0.74094723]
[1730257097295,0.09959621,2628.0,2627.8,0.79813439]
[1730257097506,0.09959621,2628.0,2627.9,0.45598793]
[1730257097816,0.09959621,2628.0,2627.9,0.74098039]
[1730257098397,0.09959621,2628.0,2627.9,1.53911478]
[1730257098999,0.09959621,2628.0,2627.9,1.25412232]
[1730257099205,0.09959621,2628.0,2627.9,1.99510901]
[1730257099403,0.09959621,2628.0,2627.9,1.19697462]
[1730257099608,0.09959621,2628.0,2627.9,2.77890901]
[1730257100800,0.09959621,2628.0,2627.9,2.32292108]
[1730257100963,4.66406621,2628.0,2627.9,1.53912108]
[1730257101406,3.80531,2627.9,2627.8,0.79813439]
[1730257101579,3.8056,2627.7,2627.6,0.79813439]
[1730257101779,3.90505767,2627.7,2627.6,0.79813439]
[1730257102102,3.90505767,2627.7,2627.5,0.79813439]
[1730257102810,3.80575,2627.6,2627.5,0.79813439]
[1730257103215,3.90520767,2627.6,2627.5,0.79813439]
[1730257103383,3.90520767,2627.6,2627.5,0.28498829]
[1730257104290,3.90520767,2627.6,2627.5,0.74100575]
[1730257105407,3.90520767,2627.6,2627.4,0.79813439]
[1730257105612,3.90520767,2627.6,2627.5,0.28492025]
[1730257105813,3.90520767,2627.6,2627.5,0.74079265]
[1730257106889,3.90520767,2627.6,2627.5,0.28492025]
[1730257107096,3.90520767,2627.6,2627.5,0.74079265]
[1730257108014,3.90520767,2627.6,2627.5,0.28492025]
[1730257108922,3.90520767,2627.6,2627.3,1.58193439]
[1730257109117,3.90520767,2627.6,2627.5,0.45574093]
[1730257109616,3.90520767,2627.6,2627.5,0.74057901]
[1730257110014,3.90520767,2627.6,2627.5,0.28483808]
[1730257111129,0.09945767,2627.6,2627.5,0.28483808]
[1730257111621,0.09945767,2627.6,2627.5,0.74057901]
[1730257112427,7.61104,2627.8,2627.5,0.28483808]
[1730257112643,0.09937074,2627.6,2627.4,1.25373199]
[1730257112842,3.80564,2627.7,2627.4,1.25373199]
[1730257113167,3.80564,2627.7,2627.5,0.28474894]
[1730257113318,3.80564,2627.7,2627.6,0.28474894]
[1730257114436,3.90501074,2627.7,2627.6,0.28474894]
[1730257116853,3.90501074,2627.7,2627.6,0.28469779]
[1730257119435,0.09937074,2627.7,2627.6,0.28469779]
[1730257119840,3.80555,2627.8,2627.6,0.28469779]
[1730257120041,3.80555,2627.8,2627.5,0.45551646]
[1730257120042,0.09940607,2627.7,2627.5,0.45551646]
[1730257120266,0.09940607,2627.7,2627.6,0.28467926]
[1730257120456,3.80555,2627.8,2627.6,0.28467926]
[1730257120630,0.09940607,2627.7,2627.4,1.25365085]
[1730257120941,3.80555,2627.8,2627.5,0.28468087]
[1730257121140,0.09940607,2627.7,2627.6,0.28468087]
[1730257121336,3.80555,2627.8,2627.6,0.28468087]
[1730257121542,3.80555,2627.8,2627.7,0.28468087]
[1730257123771,3.80555,2627.8,2627.7,0.28466448]
[1730257128659,3.80555,2627.8,2627.4,1.25367698]
[1730257128969,3.80555,2627.8,2627.7,0.28471412]
[1730257129467,3.90495607,2627.8,2627.7,0.28471412]
[1730257131373,3.80568,2627.7,2627.4,1.7440147]
[1730257131575,3.8056,2627.7,2627.4,1.7440147]
[1730257131868,3.8056,2627.7,2627.5,0.28483177]
[1730257132031,3.90515607,2627.6,2627.5,0.28483177]
[1730257132769,3.90515607,2627.6,2627.5,0.74054665]
[1730257133266,3.90515607,2627.6,2627.5,0.45571488]
[1730257133477,3.90515607,2627.6,2627.4,0.45571488]
[1730257133771,3.90515607,2627.6,2627.5,0.74058908]
[1730257133968,3.90515607,2627.6,2627.5,0.2848742]
[1730257134271,3.90515607,2627.6,2627.5,0.74058908]
[1730257135079,3.90515607,2627.6,2627.4,0.79813439]
[1730257135367,3.90515607,2627.6,2627.5,0.74089124]
[1730257138664,3.90515607,2627.6,2627.4,0.79813439]
[1730257138881,3.90515607,2627.6,2627.5,0.74113749]
[1730257139031,3.90515607,2627.6,2627.3,1.58193439]
[1730257139228,3.90515607,2627.6,2627.5,0.28505315]
[1730257139844,3.90515607,2627.6,2627.5,0.57012092]
[1730257140855,3.90515607,2627.6,2627.5,1.02620597]
[1730257141396,3.90515607,2627.6,2627.5,0.74117621]
[1730257141601,3.90515607,2627.6,2627.5,0.45610844]
[1730257141965,3.90515607,2627.6,2627.4,0.79813439]
[1730257142598,0.09940607,2627.6,2627.4,0.79813439]
[1730257142809,3.80589,2627.5,2627.4,0.79813439]
[1730257143100,3.90528247,2627.5,2627.4,0.79813439]
[1730257143304,3.90528247,2627.5,2627.3,3.08159814]
[1730257143468,0.09939247,2627.5,2627.4,0.79828718]
[1730257144425,0.09939247,2627.5,2627.4,1.539686]
[1730257144561,0.09939247,2627.5,2627.4,1.53987466]
[1730257144892,3.90528247,2627.5,2627.4,1.53987466]
[1730257145279,3.90528247,2627.5,2627.4,0.74139882]
[1730257145688,3.90528247,2627.5,2627.4,1.53997138]
[1730257147903,3.90528247,2627.5,2627.4,1.54039661]
[1730257148143,0.09939247,2627.5,2627.4,1.54039661]
[1730257148344,3.80577,2627.6,2627.4,0.74182405]
[1730257148546,3.80577,2627.6,2627.5,1.54066308]
[1730257148956,7.61131,2627.7,2627.5,1.54066308]
[1730257149139,3.80561,2627.7,2627.6,0.74182405]
[1730257150034,3.80561,2627.7,2627.6,1.54066308]
[1730257151340,3.80561,2627.7,2627.5,0.79883903]
[1730257151642,3.80561,2627.7,2627.6,0.45648428]
[1730257151862,3.80561,2627.7,2627.6,1.54059376]
[1730257158640,3.80561,2627.7,2627.6,0.79881075]
[1730257158966,3.80561,2627.7,2627.6,1.54056782]
[1730257159577,3.90501064,2627.7,2627.6,2.73774119]
[1730257159783,3.90501064,2627.7,2627.6,1.54053006]
[1730257159784,0.09940064,2627.7,2627.6,1.54053006]
[1730257159937,3.80545,2627.9,2627.6,3.17287047]
[1730257160135,3.80545,2627.9,2627.7,1.54050625]
[1730257160336,0.0994468,2627.8,2627.7,1.54050625]
[1730257160778,0.0994468,2627.8,2627.7,0.79874918]
[1730257161080,3.9049268,2627.8,2627.7,1.93890873]
[1730257161374,3.9049268,2627.8,2627.7,0.7416976]
[1730257162175,3.9049268,2627.8,2627.7,0.45642929]
[1730257162364,3.9049268,2627.8,2627.7,0.74165138]
[1730257162546,3.9049268,2627.8,2627.7,0.45640085]
[1730257162941,3.9049268,2627.8,2627.7,0.45638053]
[1730257163450,3.9049268,2627.8,2627.7,1.25499789]
[1730257163662,3.9049268,2627.8,2627.7,0.45638053]
[1730257163863,3.9049268,2627.8,2627.7,0.74161836]
[1730257164576,3.9049268,2627.8,2627.7,1.54020479]
[1730257164780,3.9049268,2627.8,2627.7,0.74161836]
[1730257165077,3.9049268,2627.8,2627.7,0.74048934]
[1730257165754,3.9049268,2627.8,2627.7,1.53904131]
[1730257165954,3.9049268,2627.8,2627.7,1.08375593]
[1730257169694,3.9049268,2627.8,2627.7,1.0837189]
[1730257173188,3.9049268,2627.8,2627.7,1.36885669]
[1730257173700,3.9049268,2627.8,2627.7,0.79855197]
[1730257174004,3.9049268,2627.8,2627.7,1.08368206]
[1730257175414,3.9049268,2627.8,2627.7,1.53988041]
[1730257177020,3.9049268,2627.8,2627.7,0.79855197]
[1730257177186,3.9049268,2627.8,2627.7,1.5398387]
[1730257180386,3.9049268,2627.8,2627.7,0.74128673]
[1730257180583,3.9049268,2627.8,2627.7,1.1974735]
[1730257181209,3.9049268,2627.8,2627.7,0.74129705]
[1730257184326,3.9049268,2627.8,2627.7,1.02648293]
[1730257184689,3.9049268,2627.8,2627.7,0.28515372]
[1730257186229,3.9049268,2627.8,2627.7,0.74139968]
[1730257186425,3.9049268,2627.8,2627.7,1.53995165]
[1730257186723,3.9049268,2627.8,2627.7,0.74139968]
[1730257194430,3.9049268,2627.8,2627.7,1.53995165]
[1730257194632,3.9049268,2627.8,2627.7,0.74139968]
[1730257196016,3.9049268,2627.8,2627.7,1.53995165]
[1730257197042,3.9049268,2627.8,2627.7,0.74139968]
[1730257197846,3.9049268,2627.8,2627.7,1.53995165]
[1730257198550,3.9049268,2627.8,2627.7,1.93861081]
[1730257199613,3.9049268,2627.8,2627.7,1.54026986]
[1730257201343,3.9049268,2627.8,2627.7,1.25511614]
[1730257201505,3.8056,2627.7,2627.6,1.58447018]
[1730257201710,3.8056,2627.7,2627.6,0.7856]
[1730257203124,3.8056,2627.7,2627.6,1.98281113]
[1730257206849,3.8056,2627.7,2627.6,2.72467603]
[1730257207474,3.9049268,2627.8,2627.6,2.72467603]
[1730257207773,3.9049268,2627.8,2627.7,0.7418649]
[1730257208551,3.9049268,2627.8,2627.7,1.54082107]
[1730257215348,3.9049268,2627.8,2627.7,0.7418649]
[1730257215547,3.9049268,2627.8,2627.7,1.54088959]
[1730257215767,3.9049268,2627.8,2627.7,1.54088695]
[1730257216190,3.9049268,2627.8,2627.7,1.5408908]
[1730257216680,3.9049268,2627.8,2627.7,0.79903424]
[1730257216879,3.9049268,2627.8,2627.7,1.54098504]
[1730257217946,3.80548,2627.8,2627.7,1.54098504]
[1730257218399,3.90356692,2627.8,2627.7,1.54098504]
[1730257219789,3.90356692,2627.8,2627.7,0.7419508]
[1730257220150,3.90356692,2627.8,2627.7,1.54103509]
[1730257220352,3.90356692,2627.8,2627.7,1.2556694]
[1730257220678,3.90356692,2627.8,2627.7,1.99767492]
[1730257220853,3.90356692,2627.8,2627.7,1.54105826]
[1730257221249,0.09808692,2627.8,2627.7,0.28538886]
[1730257221487,0.09808692,2627.8,2627.7,1.48259999]
[1730257223518,0.09808692,2627.8,2627.7,8.50439081]
[1730257223681,0.09808692,2627.8,2627.7,10.62309523]
[1730257223869,3.80496,2628.2,2627.8,0.8217]
[1730257224077,3.80496,2628.2,2628.1,0.79905352]
[1730257224514,3.80496,2628.2,2628.1,1.08441576]
[1730257225030,3.80496,2628.2,2628.1,0.28536224]
[1730257231107,3.89713225,2628.2,2628.1,0.28536224]
[1730257232073,3.89713225,2628.2,2628.0,0.79905352]
[1730257232266,3.89713225,2628.2,2628.1,0.28499915]
[1730257237796,3.89713225,2628.2,2628.1,0.2848947]
[1730257238697,0.09217225,2628.2,2628.1,6.33874844]
[1730257238881,0.09217225,2628.2,2628.1,10.97265238]
[1730257239083,3.802,2628.9,2628.1,10.97265238]
[1730257239084,3.0,2628.7,2628.2,3.80488]
[1730257239395,6.80428,2628.7,2628.2,5.35559749]
[1730257239559,3.80431,2628.6,2628.3,0.7532]
[1730257240190,3.0,2628.7,2628.3,0.7532]
[1730257240191,6.80417,2628.7,2628.4,0.53556675]
[1730257240498,0.347,2800.0,2628.8,6.09001]
[1730257240499,0.802,2629.5,2628.8,6.09001]
[1730257240660,3.80303,2629.5,2629.0,5.29933374]
[1730257240863,3.80303,2629.5,2629.0,6.09692123]
[1730257241064,3.80287,2629.6,2629.4,2.24882374]
[1730257241367,3.80278,2629.7,2629.4,2.24882374]
[1730257241569,3.80234,2630.0,2629.6,1.49562374]
[1730257241796,7.32967046,2630.2,2629.9,1.49562374]
[1730257241797,6.52767046,2630.2,2629.9,1.49562374]
[1730257242022,6.52767046,2630.2,2630.0,1.49562374]
[1730257243110,3.80242,2630.0,2629.8,0.7532]
[1730257243301,0.802,2629.9,2629.2,0.7532]
[1730257243615,0.802,2629.9,2628.5,2.00398256]
[1730257243616,0.802,2629.2,2628.5,3.04641123]
[1730257243779,3.80289,2629.6,2628.3,0.7532]
[1730257243780,3.80459,2628.4,2628.3,0.7532]
[1730257244202,3.8043,2628.6,2628.1,3.59695666]
[1730257244407,3.8043,2628.6,2628.2,0.35969567]
[1730257244591,3.8043,2628.6,2628.3,1.49562374]
[1730257244805,0.08676372,2628.5,2628.3,1.49562374]
[1730257244994,8.41024,2628.8,2628.3,1.49562374]